bitfinex-derivatives/quotes_SOLF0:USTF0_20250125
["timestamp","ask_amount","ask_price","bid_price","bid_amount"]
[1737811010809,5.90185485,249.94,249.89,4.0022]
[1737811011016,5.90185485,249.9,249.87,0.02719834]
[1737811013714,5.90185485,249.9,249.87,4.02969834]
[1737811016011,9.90375485,249.92,249.88,4.0025]
[1737811016712,5.90185485,249.94,249.91,4.0019]
[1737811016913,9.90305485,249.96,249.91,4.0019]
[1737811019324,5.90185485,250.01,249.97,4.001]
[1737811019525,5.90185485,250.05,249.96,5.90185485]
[1737811019717,5.90185485,250.05,249.97,0.03066135]
[1737811020522,5.90185485,250.05,250.0,4.0005]
[1737811023522,5.90185485,250.05,250.01,4.0004]
[1737811024720,5.90185485,250.05,249.97,0.03066135]
[1737811024921,5.90185485,250.03,249.99,4.0006]
[1737811028728,5.90185485,250.03,249.98,4.0009]
[1737811029429,5.90185485,250.03,249.97,0.03066135]
[1737811029629,5.90185485,250.05,249.98,5.90185485]
[1737811029822,5.90185485,250.12,250.04,5.90185485]
[1737811030024,5.90185485,250.12,250.09,3.999]
[1737811030428,9.90015485,250.14,250.09,3.999]
[1737811030925,5.90185485,250.14,250.09,0.02582884]
[1737811031125,5.90185485,250.12,250.09,0.02582884]
[1737811032224,3.9985,250.13,250.09,0.02582884]
[1737811032729,5.90185485,250.1,250.09,0.02582884]
[1737811033429,9.90075485,250.1,250.09,0.02582884]
[1737811034531,3.9998,250.05,249.98,9.90255485]
[1737811034930,5.90185485,250.04,249.96,9.90295485]
[1737811035131,4.0003,250.02,249.96,9.90295485]
[1737811035329,5.90185485,250.02,249.96,5.90185485]
[1737811035530,5.90185485,250.02,249.96,9.90305485]
[1737811035733,4.03074345,250.01,249.97,0.02912032]
[1737811035928,4.0005,250.01,249.96,9.90305485]
[1737811036132,4.03009874,250.01,249.97,0.02567916]
[1737811036336,4.03009874,250.01,249.98,9.90275485]
[1737811036337,0.02959874,250.01,249.98,9.90275485]
[1737811038038,0.02959874,250.01,249.98,5.90185485]
[1737811038237,0.02959874,250.01,250.0,4.0005]
[1737811038439,0.02959874,250.01,250.0,9.90235485]
[1737811040535,3.9997,250.06,250.01,4.0003]
[1737811041431,5.90185485,250.08,250.0,5.90185485]
[1737811041633,3.9998,250.05,250.0,5.90185485]
[1737811042233,5.90185485,250.06,250.0,5.90185485]
[1737811042439,3.9996,250.07,250.0,5.90185485]
[1737811042641,5.90185485,250.12,250.04,5.90185485]
[1737811042837,5.90185485,250.12,250.05,3.9997]
[1737811043239,5.90185485,250.12,250.04,5.90185485]
[1737811043441,5.90185485,250.14,250.06,5.90185485]
[1737811043943,5.90185485,250.14,250.07,0.03038254]
[1737811044549,3.9987,250.12,250.07,0.03038254]
[1737811044746,5.90185485,250.12,250.07,0.03038254]
[1737811045748,5.90185485,250.12,250.08,3.9992]
[1737811046247,5.90185485,250.12,250.07,0.03038254]
[1737811046441,5.90185485,250.15,250.07,5.93223739]
[1737811046745,5.90185485,250.18,250.1,5.90185485]
[1737811046942,5.90185485,250.16,250.08,5.90185485]
[1737811048345,5.90185485,250.16,250.07,0.03038254]
[1737811048346,5.90185485,250.18,250.1,5.90185485]
[1737811048547,7.29775485,250.22,250.14,5.90185485]
[1737811049049,7.29775485,250.22,250.15,0.02970126]
[1737811049250,5.90185485,250.22,250.15,0.02970126]
[1737811049447,3.9972,250.21,250.17,3.9978]
[1737811049646,53.63331151,250.23,250.17,3.9978]
[1737811050448,57.63021151,250.23,250.17,3.9978]
[1737811050845,3.9971,250.22,250.17,3.9978]
[1737811051550,9.89895485,250.22,250.16,9.89985485]
[1737811054054,3.9972,250.21,250.16,9.89985485]
[1737811054957,3.9974,250.2,250.15,0.02970126]
[1737811055453,9.89925485,250.2,250.15,0.02970126]
[1737811055649,5.90185485,250.2,250.15,0.02970126]
[1737811055851,9.89905485,250.22,250.15,0.02970126]
[1737811056752,5.90185485,250.22,250.15,0.02970126]
[1737811056954,3.9972,250.21,250.15,4.02770126]
[1737811057253,5.90185485,250.22,250.15,0.02970126]
[1737811058454,5.90185485,250.24,250.16,5.90185485]
[1737811058756,5.90185485,250.24,250.18,5.90185485]
[1737811059153,5.90185485,250.26,250.18,5.90185485]
[1737811059352,3.9968,250.24,250.19,3.9974]
[1737811059553,3.9968,250.24,250.19,4.0261249]
[1737811060150,3.9968,250.24,250.2,3.9973]
[1737811063055,3.9964,250.26,250.22,3.9969]
[1737811063551,3.9966,250.25,250.2,5.90185485]
[1737811064659,3.9967,250.24,250.2,9.89915485]
[1737811064858,5.90185485,250.28,250.2,5.90185485]
[1737811066063,3.9967,250.25,250.2,9.89915485]
[1737811067060,5.90185485,250.28,250.2,9.89915485]
[1737811067061,3.9968,250.24,250.2,3.9973]
[1737811069264,5.90185485,250.26,250.19,0.0287249]
[1737811069564,5.90185485,250.26,250.19,4.0262249]
[1737811070366,3.9967,250.24,250.19,4.0262249]
[1737811070761,3.9967,250.24,250.2,3.9973]
[1737811072167,5.90185485,250.26,250.19,0.0287249]
[1737811072369,3.9971,250.22,250.19,0.0287249]
[1737811072570,5.90185485,250.24,250.19,0.0287249]
[1737811072969,2.5665,250.32,250.02,5.90185485]
[1737811072970,5.90185485,250.2,250.02,5.90185485]
[1737811073170,5.90185485,250.07,249.99,5.90185485]
[1737811073570,5.90185485,250.03,249.95,5.90185485]
[1737811074075,0.03058853,250.01,249.97,0.02651468]
[1737811074770,5.93244338,250.01,249.97,0.02651468]
[1737811075680,0.03058853,250.01,249.97,0.02651468]
[1737811076472,9.21943922,249.98,249.97,0.02651468]
[1737811077072,9.21943922,249.98,249.85,4.0029]
[1737811077073,9.21943922,249.98,249.83,2.6931]
[1737811077374,9.21943922,249.95,249.83,2.6931]
[1737811077774,9.21943922,249.95,249.79,9.21943922]
[1737811077974,9.21943922,249.95,249.8,1.3131]
[1737811078175,0.03003924,249.89,249.85,0.02553402]
[1737811078375,9.21943922,249.92,249.8,1.3131]
[1737811078575,0.02858855,249.89,249.85,0.0302315]
[1737811078777,9.24802777,249.89,249.85,0.0302315]
[1737811078976,9.21943922,249.86,249.85,0.0302315]
[1737811079975,13.22233922,249.86,249.77,4.0041]
[1737811080880,9.21943922,249.86,249.77,4.0041]
[1737811081075,9.21943922,249.86,249.73,2.6855]
[1737811081076,9.21943922,249.86,249.78,4.004]
[1737811081277,0.02775305,249.84,249.79,0.02995087]
[1737811082983,0.02775305,249.84,249.82,4.0033]
[1737811087486,13.22113922,249.93,249.87,4.0026]
[1737811087680,9.21943922,249.93,249.76,9.21943922]
[1737811087886,9.21943922,249.93,249.79,9.21943922]
[1737811088287,9.21943922,249.93,249.89,4.0022]
[1737811088787,9.24829773,249.93,249.89,4.0300991]
[1737811090092,9.24829773,249.93,249.89,0.0278991]
[1737811090389,9.24829773,249.93,249.9,4.0021]
[1737811090892,0.02885851,249.93,249.92,4.0018]
[1737811095092,9.24829773,249.93,249.89,0.0278991]
[1737811095693,9.24829773,249.93,249.89,4.0301991]
[1737811096492,9.24829773,249.93,249.91,4.002]
[1737811096689,0.02885851,249.93,249.89,0.0278991]
[1737811097395,0.02885851,249.93,249.92,4.0018]
[1737811101696,9.21943922,250.02,249.9,1.3489]
[1737811101891,9.21943922,250.02,249.99,4.0006]
[1737811102291,9.21943922,250.05,250.01,4.0004]
[1737811103392,9.21943922,250.05,250.03,4.0001]
[1737811105296,9.21943922,250.05,250.02,4.0002]
[1737811106492,0.02985933,250.06,250.0,0.02524089]
[1737811106694,0.02985933,250.06,250.05,3.9997]
[1737811110897,13.21783922,250.14,250.09,3.9991]
[1737811111094,9.21943922,250.14,250.01,3.9513]
[1737811111497,3.9982,250.15,250.09,3.999]
[1737811111699,9.21943922,250.17,250.03,9.21943922]
[1737811112193,9.21943922,250.17,250.13,3.9984]
[1737811112394,9.21943922,250.2,250.06,9.21943922]
[1737811112694,9.21943922,250.2,250.12,0.02964132]
[1737811112894,13.21683922,250.2,250.15,3.9981]
[1737811113197,9.21943922,250.2,250.12,0.02964132]
[1737811115694,9.21943922,250.2,250.15,3.9981]
[1737811117301,13.21683922,250.2,250.15,3.9981]
[1737811117495,13.21683922,250.2,250.14,3.9983]
[1737811118998,3.9979,250.17,250.12,4.02814132]
[1737811119202,9.21943922,250.2,250.12,0.02964132]
[1737811120596,3.9979,250.17,250.12,4.00038827]
[1737811120902,3.9979,250.17,250.12,0.00188827]
[1737811121703,4.02583608,250.17,250.12,0.00188827]
[1737811122112,4.02583608,250.17,250.13,3.9984]
[1737811123502,0.02793608,250.17,250.12,0.00188827]
[1737811123806,0.02793608,250.17,250.16,3.998]
[1737811126604,3.9966,250.25,250.2,3.9973]
[1737811127408,9.21943922,250.29,250.12,9.21943922]
[1737811127609,3.9964,250.27,250.21,3.9972]
[1737811129708,3.9964,250.26,250.21,3.9972]
[1737811133711,3.996,250.29,250.24,3.9967]
[1737811134110,3.996,250.29,250.24,4.02439559]
[1737811135816,84.07943922,250.32,250.24,0.02769559]
[1737811136015,3.9957,250.31,250.26,3.9963]
[1737811136211,9.21943922,250.32,250.24,0.02769559]
[1737811137207,9.21943922,250.32,250.26,3.9963]
[1737811137410,9.21943922,250.32,250.24,0.02769559]
[1737811138511,9.21943922,250.29,250.24,0.02769559]
[1737811138914,3.9961,250.28,250.24,0.02769559]
[1737811140117,3.9959,250.29,250.25,3.9965]
[1737811140518,9.21943922,250.32,250.24,0.02769559]
[1737811140816,3.9958,250.3,250.26,3.9964]
[1737811141019,9.21943922,250.32,250.24,0.02769559]
[1737811141220,3.9963,250.27,250.24,0.02769559]
[1737811141518,9.21943922,250.32,250.24,0.02769559]
[1737811141717,6.3786041,250.27,250.24,0.02769559]
[1737811141917,6.3786041,250.27,250.24,4.02439559]
[1737811142113,6.3786041,250.25,250.24,0.02769559]
[1737811142718,10.3751041,250.25,250.24,0.02769559]
[1737811144820,6.3786041,250.25,250.15,3.9981]
[1737811145020,6.3786041,250.18,250.12,3.9744]
[1737811145221,6.3786041,250.16,250.08,6.3786041]
[1737811145524,6.3786041,250.16,249.94,166.0590085]
[1737811145525,6.3786041,250.14,250.06,6.3786041]
[1737811145718,9.97564395,250.19,250.04,9.97564395]
[1737811145924,9.97564395,250.22,250.07,9.97564395]
[1737811146120,9.97564395,250.22,250.09,0.02552875]
[1737811146628,3.9974,250.2,250.15,3.9981]
[1737811146832,9.97564395,250.25,250.1,9.97564395]
[1737811147025,3.9971,250.22,250.16,3.9979]
[1737811147222,9.97564395,250.25,250.1,9.97564395]
[1737811147426,9.97564395,250.25,250.16,0.03031498]
[1737811147624,3.9971,250.22,250.16,0.03031498]
[1737811147825,9.97564395,250.25,250.16,0.03031498]
[1737811148432,9.97564395,250.19,250.16,0.03031498]
[1737811149121,3.9977,250.18,250.16,0.03031498]
[1737811149321,9.97564395,250.19,250.03,2.5983]
[1737811149523,3.9985,250.13,250.07,3.9993]
[1737811149731,9.97564395,250.13,249.98,15.96878537]
[1737811149925,9.97564395,250.13,249.98,17.30488537]
[1737811150232,3.999,250.1,250.04,3.9998]
[1737811150524,3.999,250.1,250.03,0.03028777]
[1737811150829,9.97564395,250.13,250.03,0.03028777]
[1737811151529,3.9989,250.11,250.04,3.9998]
[1737811151725,9.97564395,250.13,250.03,0.03028777]
[1737811152530,3.9992,250.09,250.03,4.03028777]
[1737811154532,3.999,250.1,250.04,3.9999]
[1737811154734,9.97564395,250.16,250.03,0.03028777]
[1737811154932,9.97564395,250.16,250.01,9.97564395]
[1737811155227,9.97564395,250.1,250.07,0.0274914]
[1737811155432,9.97564395,250.1,249.93,1.3359]
[1737811155625,3.9999,250.05,249.93,1.3359]
[1737811156129,9.97564395,250.07,249.93,1.3359]
[1737811156334,3.9996,250.06,250.0,4.0005]
[1737811157534,3.9996,250.06,249.98,0.02621238]
[1737811157833,3.9996,250.06,250.01,4.0004]
[1737811158435,9.97564395,250.1,249.98,0.02621238]
[1737811158735,1.3202,250.15,250.01,9.97564395]
[1737811158936,9.97564395,250.16,250.01,10.00570695]
[1737811159132,9.97564395,250.19,250.02,3.8886]
[1737811159438,3.998,250.16,250.11,3.9987]
[1737811160136,3.9978,250.18,250.08,0.02747714]
[1737811160536,9.97564395,250.22,250.08,0.02747714]
[1737811161135,3.9972,250.21,250.08,0.02747714]
[1737811161639,3.9974,250.2,250.13,3.9983]
[1737811161940,9.97564395,250.22,250.07,9.97564395]
[1737811162240,11.25924395,250.25,250.14,0.02627679]
[1737811162738,3.9969,250.23,250.17,3.9978]
[1737811164441,9.97564395,250.25,250.14,0.02627679]
[1737811164634,9.97564395,250.25,250.15,3.998]
[1737811165238,9.97564395,250.22,250.14,0.02627679]
[1737811166942,9.97564395,250.16,250.14,0.02627679]
[1737811167841,13.97374395,250.16,250.14,0.02627679]
[1737811168937,13.97374395,250.16,250.02,3.8886]
[1737811168938,3.9988,250.11,250.02,3.8886]
[1737811169839,9.97564395,250.13,250.06,3.9995]
[1737811170044,0.02800018,250.09,250.04,0.02796143]
[1737811170444,0.02800018,250.09,250.06,3.9995]
[1737811175250,0.02800018,250.09,250.04,0.02796143]
[1737811175450,0.02800018,250.09,250.07,3.9994]
[1737811178456,0.02800018,250.09,250.08,3.9993]
[1737811184061,6.41445418,250.09,250.06,3.9994]
[1737811184666,6.386454,250.07,250.06,3.9994]
[1737811185165,6.41445418,250.09,250.07,3.9993]
[1737811186771,0.02800018,250.09,250.08,3.9993]
[1737811187763,1.8e-07,250.09,250.08,3.9993]
[1737811190972,1.8e-07,250.09,250.08,13.97322575]
[1737811192073,13.97072575,250.24,250.19,3.9974]
[1737811193267,13.97072575,250.24,250.19,4.02402534]
[1737811196177,3.9969,250.23,250.19,0.02662534]
[1737811198572,3.9969,250.23,250.19,4.02412534]
[1737811198772,9.97392575,250.24,250.19,4.02412534]
[1737811199475,9.97392575,250.24,250.2,3.9973]
[1737811200078,3.9969,250.23,250.19,4.02412534]
[1737811200476,3.9973,250.2,250.19,0.02662534]
[1737811200674,13.97122575,250.2,250.19,0.02662534]
[1737811200877,9.97392575,250.2,250.19,0.02662534]
[1737811201077,9.97392575,250.23,250.19,0.02662534]
[1737811202679,9.97392575,250.2,250.19,0.02662534]
[1737811203679,9.97392575,250.2,250.05,9.97392575]
[1737811204383,9.97392575,250.16,250.02,3.8886]
[1737811204580,9.97392575,250.13,250.02,3.8886]
[1737811204778,0.02595267,250.12,250.06,0.03020702]
[1737811205783,4.02455267,250.12,250.07,3.9994]
[1737811207388,0.02595267,250.12,250.11,3.9988]
[1737811207890,9.97392575,250.22,250.08,9.97392575]
[1737811208192,9.97392575,250.25,250.11,9.97392575]
[1737811208386,9.97392575,250.25,250.12,1.3056]
[1737811208588,3.9967,250.24,250.15,3.998]
[1737811208783,9.97392575,250.25,250.12,1.3056]
[1737811209183,9.97392575,250.25,250.16,0.02927407]
[1737811209395,13.97062575,250.25,250.18,3.9975]
[1737811209592,3.9967,250.25,250.16,0.02927407]
[1737811211586,9.97392575,250.25,250.16,0.02927407]
[1737811212097,3.9972,250.21,250.16,4.02717407]
[1737811212395,9.97392575,250.22,250.16,0.02927407]
[1737811213095,3.9974,250.2,250.16,0.02927407]
[1737811213795,3.9972,250.21,250.16,4.02717407]
[1737811214689,9.97392575,250.25,250.16,0.02927407]
[1737811214895,3.997,250.23,250.18,3.9976]
[1737811215598,3.997,250.22,250.18,3.9976]
[1737811217597,3.9969,250.24,250.18,3.9976]
[1737811217797,9.97392575,250.25,250.18,3.9976]
[1737811218190,3.9967,250.24,250.19,3.9975]
[1737811218398,9.97392575,250.25,250.19,3.9975]
[1737811218600,9.97392575,250.25,250.16,0.02927407]
[1737811218897,3.9969,250.23,250.16,0.02927407]
[1737811220094,3.9969,250.23,250.18,3.9976]
[1737811221698,6.38172014,250.21,250.19,3.9975]
[1737811222003,6.38172014,250.23,250.16,0.02927407]
[1737811222498,6.38172014,250.23,250.2,3.9972]
[1737811223296,6.38172014,250.21,250.2,3.9972]
[1737811224199,6.38172014,250.23,250.2,3.9972]
[1737811224401,5.56532689,250.27,250.16,0.02927407]
[1737811224402,6.38172014,250.27,250.19,6.38172014]
[1737811224700,34.12536758,250.42,250.21,6.38172014]
[1737811224701,6.38172014,250.29,250.21,6.38172014]
[1737811224904,6.38172014,250.29,250.28,3.9961]
[1737811226806,6.38172014,250.29,250.27,3.9962]
[1737811227400,6.38172014,250.29,250.26,0.02682871]
[1737811229502,6.38172014,250.27,250.26,0.02682871]
[1737811229699,6.38172014,250.27,250.26,4.02322871]
[1737811230101,3.9955,250.32,250.26,4.02322871]
[1737811230102,6.38172014,250.29,250.26,4.02322871]
[1737811232901,6.38172014,250.29,250.26,0.02682871]
[1737811233103,6.38172014,250.29,250.28,3.9961]
[1737811238506,6.38172014,250.29,250.27,3.9962]
[1737811238711,6.38172014,250.29,250.26,0.02682871]
[1737811240307,6.38172014,250.27,250.26,0.02682871]
[1737811240508,6.38172014,250.29,250.26,0.02682871]
[1737811240706,6.38172014,250.29,250.27,3.9962]
[1737811241009,6.38172014,250.29,250.26,0.02682871]
[1737811241305,6.38172014,250.29,250.28,3.9961]
[1737811241506,6.38172014,250.29,250.26,0.02682871]
[1737811242110,6.38172014,250.29,250.26,4.02302871]
[1737811242408,6.38172014,250.27,250.26,0.02682871]
[1737811244211,10.37792014,250.27,250.26,0.02682871]
[1737811249514,6.38172014,250.27,250.18,1.2862]
[1737811249710,6.38172014,250.2,250.18,1.2862]
[1737811249911,6.38172014,250.22,250.18,1.2862]
[1737811250508,6.38172014,250.22,250.19,3.9974]
[1737811250712,0.02920113,250.23,250.18,7.66792014]
[1737811250913,6.38172014,250.26,250.18,7.66792014]
[1737811251112,6.38172014,250.26,250.23,3.9968]
[1737811251408,0.02694858,250.25,250.18,7.69840758]
[1737811251616,0.02694858,250.25,250.21,3.9971]
[1737811251807,0.02694858,250.25,250.2,6.38172014]
[1737811252809,0.02694858,250.25,250.24,3.9967]
[1737811256819,6.38172014,250.32,250.24,6.38172014]
[1737811257024,6.38172014,250.32,250.29,3.9958]
[1737811260417,6.38172014,250.34,250.28,6.40946075]
[1737811260623,6.38172014,250.36,250.3,6.38172014]
[1737811260823,6.38172014,250.36,250.28,6.40946075]
[1737811261215,6.38172014,250.41,250.33,6.38172014]
[1737811261719,6.38172014,250.39,250.34,0.02643182]
[1737811262620,6.38172014,250.39,250.36,3.9947]
[1737811263223,6.38172014,250.39,250.34,4.02143182]
[1737811263722,6.38172014,250.39,250.34,0.02643182]
[1737811263930,6.38172014,250.39,250.35,6.71851993]
[1737811264117,6.38172014,250.39,250.36,2.72361993]
[1737811264323,6.38172014,250.39,250.37,2.72361993]
[1737811264617,6.38172014,250.39,250.38,2.72361993]
[1737811267030,10.37602014,250.39,250.38,2.72361993]
[1737811268922,3.9948,250.37,250.34,0.02643182]
[1737811269124,6.38172014,250.36,250.35,2.72755116]
[1737811269825,10.37652014,250.36,250.33,0.0286992]
[1737811270129,10.37652014,250.36,250.34,2.72772145]
[1737811270328,10.37652014,250.36,250.35,2.72772145]
[1737811270528,10.37652014,250.36,250.35,2.72761355]
[1737811273430,6.38172014,250.36,250.35,2.72761355]
[1737811273925,10.37622014,250.38,250.35,2.72761355]
[1737811274230,3.9946,250.37,250.36,2.72761355]
[1737811278926,3.9946,250.37,250.36,2.72363277]
[1737811282836,3.9946,250.37,250.36,2.72373911]
[1737811283038,3.9946,250.37,250.36,2.7239283]
[1737811286438,6.38172014,250.44,250.36,9.10564844]
[1737811286635,6.38172014,250.44,250.37,2.7239283]
[1737811286838,6.38172014,250.42,250.38,2.7239283]
[1737811287139,6.38172014,250.42,250.37,0.0269335]
[1737811287140,6.38172014,250.42,250.39,2.7239283]
[1737811287336,6.38172014,250.44,250.4,2.7239283]
[1737811287637,6.38172014,250.44,250.41,2.7239283]
[1737811287838,1.2795,250.52,250.42,2.7239283]
[1737811288036,6.38172014,250.43,250.34,9.04392014]
[1737811288240,6.38172014,250.41,250.35,2.72149199]
[1737811288444,6.38172014,250.41,250.36,2.74767157]
[1737811288642,6.38172014,250.41,250.37,2.72149199]
[1737811288843,6.38172014,250.41,250.38,2.72149199]
[1737811289044,6.38172014,250.41,250.39,2.72149199]
[1737811289244,6.38172014,250.41,250.4,2.72149199]
[1737811291144,10.37572014,250.41,250.4,2.72149199]
[1737811295046,6.38172014,250.41,250.4,2.72149199]
[1737811295447,10.37572014,250.41,250.4,2.72149199]
[1737811299550,3.9946,250.37,250.36,0.02617958]
[1737811299750,6.38172014,250.37,250.23,14.36478776]
[1737811299946,6.38172014,250.3,250.23,6.38172014]
[1737811300948,0.02877191,250.29,250.24,0.02957469]
[1737811301150,0.02877191,250.29,250.25,3.9964]
[1737811302155,0.02877191,250.29,250.24,0.02957469]
[1737811302352,6.38172014,250.28,250.24,0.02957469]
[1737811302953,0.02877191,250.29,250.24,4.02627469]
[1737811304550,0.02877191,250.29,250.24,0.02957469]
[1737811304855,0.02877191,250.29,250.25,3.9965]
[1737811310651,0.02877191,250.29,250.24,0.02957469]
[1737811310859,0.02877191,250.29,250.27,3.9962]
[1737811311560,0.02877191,250.29,250.28,2.69146561]
[1737811312856,4.02467191,250.29,250.28,2.69146561]
[1737811313464,4.02467191,250.29,250.28,2.69265101]
[1737811313665,4.02467191,250.29,250.28,2.69284889]
[1737811314268,0.02877191,250.29,250.28,2.69284889]
[1737811314566,6.38172014,250.36,250.28,9.07456903]
[1737811314865,6.38172014,250.36,250.29,2.69154054]
[1737811315066,6.38172014,250.36,250.3,2.69154054]
[1737811315367,6.38172014,250.36,250.31,2.69154054]
[1737811315665,6.38172014,250.36,250.32,2.69154054]
[1737811315864,6.38172014,250.36,250.33,2.69154054]
[1737811316166,6.38172014,250.36,250.34,2.69154054]
[1737811316366,6.38172014,250.36,250.35,2.69154054]
[1737811317662,6.38172014,250.36,250.35,2.69382858]
[1737811320563,10.37652014,250.36,250.35,2.69382858]
[1737811321169,6.38172014,250.36,250.35,2.69382858]
[1737811322870,6.38172014,250.38,250.35,2.69382858]
[1737811323071,3.9945,250.38,250.36,2.69382858]
[1737811323374,3.9945,250.38,250.37,2.69382858]
[1737811323575,3.9945,250.38,250.37,2.69464041]
[1737811325475,3.9945,250.38,250.37,2.6932135]
[1737811326068,6.38172014,250.38,250.37,2.6932135]
[1737811327475,6.38172014,250.38,250.37,2.69269348]
[1737811328976,6.38172014,250.42,250.37,2.69269348]
[1737811329175,6.38172014,250.4,250.38,2.69269348]
[1737811329479,6.38172014,250.4,250.39,2.69269348]
[1737811330477,6.38172014,250.4,250.39,6.68699348]
[1737811330678,6.38172014,250.4,250.39,6.68606514]
[1737811330880,6.38172014,250.4,250.39,3.9943]
[1737811331481,6.38172014,250.4,250.39,2.69253551]
[1737811331982,6.38172014,250.4,250.38,3.9945]
[1737811332182,6.38172014,250.4,250.39,2.69262172]
[1737811332382,6.38172014,250.4,250.38,3.9945]
[1737811332678,10.37602014,250.4,250.39,2.69300031]
[1737811334083,6.38172014,250.4,250.39,2.69300031]
[1737811334286,6.38172014,250.42,250.39,2.69300031]
[1737811334480,1.3476,250.53,250.4,2.69300031]
[1737811334686,6.38172014,250.41,250.38,0.0269473]
[1737811334886,6.38172014,250.39,250.31,6.38172014]
[1737811335088,6.38172014,250.39,250.37,0.02650588]
[1737811335387,6.38172014,250.39,250.38,2.69360863]
[1737811337285,6.38172014,250.41,250.38,2.69360863]
[1737811337488,6.38172014,250.41,250.39,2.69360863]
[1737811337689,6.38172014,250.41,250.4,2.69360863]
[1737811338092,6.38172014,250.43,250.4,2.69360863]
[1737811338290,6.38172014,250.43,250.41,2.69360863]
[1737811338492,6.38172014,250.43,250.42,2.69360863]
[1737811340191,10.37542014,250.43,250.42,2.69360863]
[1737811340989,10.37542014,250.43,250.37,0.0304813]
[1737811340990,3.9945,250.39,250.37,0.0304813]
[1737811341287,6.38172014,250.38,250.37,0.0304813]
[1737811342991,6.38172014,250.4,250.37,0.0304813]
[1737811343192,6.38172014,250.4,250.33,6.38172014]
[1737811343388,6.38172014,250.4,250.36,4.02134662]
[1737811344692,10.37562014,250.42,250.36,0.02664662]
[1737811344887,10.37562014,250.42,250.37,3.9946]
[1737811345391,1.3476,250.53,250.36,0.02664662]
[1737811345392,6.38172014,250.38,250.36,0.02664662]
[1737811345692,6.38172014,250.38,250.35,3.9949]
[1737811346192,10.37592014,250.4,250.35,3.9949]
[1737811347892,6.38172014,250.4,250.36,3.9947]
[1737811348694,10.37562014,250.42,250.37,3.9946]
[1737811348883,6.38172014,250.42,250.33,6.38172014]
[1737811349083,6.38172014,250.46,250.37,6.40899917]
[1737811349289,6.38172014,250.46,250.37,6.38172014]
[1737811349491,6.38172014,250.46,250.39,0.02632875]
[1737811350389,6.38172014,250.44,250.4,3.9942]
[1737811351395,6.38172014,250.44,250.39,0.02632875]
[1737811351790,10.37592014,250.4,250.39,0.02632875]
[1737811353594,6.38172014,250.4,250.39,0.02632875]
[1737811353994,6.38172014,250.42,250.39,0.02632875]
[1737811356293,6.38172014,250.42,250.39,4.02052875]
[1737811356893,10.37522014,250.44,250.39,4.02052875]
[1737811359902,10.37522014,250.44,250.4,3.9941]
[1737811360303,6.38172014,250.44,250.4,3.9941]
[1737811361299,6.38172014,250.44,250.39,0.02632875]
[1737811361499,3.9937,250.43,250.39,4.02062875]
[1737811361700,6.38172014,250.48,250.41,6.38172014]
[1737811361898,6.38172014,250.5,250.47,3.993]
[1737811362202,6.38172014,250.5,250.42,0.02596142]
[1737811362897,6.38172014,250.5,250.47,3.993]
[1737811363697,6.38172014,250.5,250.44,3.9934]
[1737811364511,10.37432014,250.5,250.42,0.02596142]
[1737811365014,6.38172014,250.48,250.42,0.02596142]
[1737811365213,6.38172014,250.5,250.43,6.38172014]
[1737811366115,6.38172014,250.5,250.44,3.9934]
[1737811366913,6.38172014,250.48,250.42,0.02596142]
[1737811367213,6.38172014,250.48,250.42,0.02664163]
[1737811368117,6.38172014,250.52,250.45,6.38172014]
[1737811368512,6.38172014,250.52,250.46,0.02647992]
[1737811369108,6.38172014,250.5,250.46,0.02647992]
[1737811369308,6.38172014,250.48,250.46,0.02647992]
[1737811369509,3.993,250.47,250.46,0.02647992]
[1737811370916,6.38172014,250.48,250.46,0.02647992]
[1737811372617,3.993,250.47,250.46,0.02647992]
[1737811373714,6.38172014,250.48,250.46,0.02647992]
[1737811375320,6.38172014,250.5,250.46,0.02647992]
[1737811376319,6.38172014,250.48,250.46,0.02647992]
[1737811377523,3.9929,250.49,250.46,0.02647992]
[1737811377723,6.38172014,250.5,250.46,0.02647992]
[1737811378426,3.9927,250.49,250.46,0.02647992]
[1737811378919,3.9929,250.48,250.46,0.02647992]
[1737811380720,3.993,250.47,250.46,0.02647992]
[1737811382023,6.38172014,250.48,250.46,0.02647992]
[1737811382230,6.38172014,250.5,250.46,0.02647992]
[1737811382433,6.38172014,250.5,250.41,6.38172014]
[1737811382628,10.37432014,250.5,250.45,0.0258903]
[1737811383224,6.38172014,250.52,250.45,0.0258903]
[1737811383530,6.38172014,250.54,250.45,6.38172014]
[1737811383831,6.38172014,250.54,250.46,0.02764465]
[1737811384130,10.37362014,250.54,250.46,0.02764465]
[1737811384332,6.38172014,250.54,250.46,0.02764465]
[1737811384826,6.38172014,250.48,250.46,0.02764465]
[1737811385031,6.38172014,250.48,250.4,1.3699]
[1737811385327,10.37472014,250.48,250.44,0.02867918]